fUST/lending_fUST_20251023
["ID","MTS","AMOUNT","RATE_DAILY","PERIOD"]
[392095176,1761156633301,-500.0,0.00023673,2]
[392095179,1761156633312,-500.0,0.00023673,2]
[392095181,1761156633321,-500.0,0.00023673,2]
[392095183,1761156633331,-500.0,0.00023673,2]
[392095184,1761156633341,-500.0,0.00023673,2]
[392095186,1761156633350,-500.0,0.00023673,2]
[392095189,1761156633361,-500.0,0.00023673,2]
[392095191,1761156633371,-264.4546618,0.00023673,2]
[392095193,1761156633380,-528.77638099,0.00023673,2]
[392095195,1761156633389,-500.0,0.00023673,2]
[392095196,1761156633398,-500.0,0.00023673,2]
[392095198,1761156633407,-500.0,0.00023673,2]
[392095199,1761156633417,-500.0,0.00023673,2]
[392095200,1761156633426,-178.94429706,0.00023673,2]
[392095201,1761156633435,-500.0,0.00023674,2]
[392095202,1761156633445,-500.0,0.00023674,2]
[392095203,1761156633454,-500.0,0.00023674,2]
[392095204,1761156633464,-500.0,0.00023674,2]
[392095205,1761156633473,-500.0,0.00023674,2]
[392095206,1761156633482,-500.0,0.00023674,2]
[392095207,1761156633491,-500.0,0.00023674,2]
[392095208,1761156633500,-500.0,0.00023674,2]
[392095209,1761156633510,-500.0,0.00023674,2]
[392095210,1761156633520,-311.46642737,0.00023674,2]
[392095211,1761156633530,-484.3866748,0.00023674,2]
[392095212,1761156633540,-500.0,0.00023674,2]
[392095213,1761156633550,-500.0,0.00023674,2]
[392095214,1761156633560,-500.0,0.00023674,2]
[392095215,1761156633569,-500.0,0.00023674,2]
[392095216,1761156633579,-500.0,0.00023674,2]
[392095217,1761156633588,-500.0,0.00023674,2]
[392095218,1761156633597,-500.0,0.00023674,2]
[392095219,1761156633606,-500.0,0.00023674,2]
[392095220,1761156633616,-500.0,0.00023674,2]
[392095221,1761156633625,-500.0,0.00023674,2]
[392095222,1761156633634,-500.0,0.00023674,2]
[392095223,1761156633644,-357.54719996,0.00023674,2]
[392095224,1761156633654,-376.23080302,0.00023674,2]
[392095225,1761156633663,-267.10141813,0.00023674,2]
[392095226,1761156633672,-94148.32964058,0.00023675,2]
[392095240,1761156636987,666.0,0.00022674,2]
[392095256,1761156638153,-254.31,0.00023665,10]
[392095257,1761156638163,-500.0,0.00023672,2]
[392095258,1761156638173,-500.0,0.00023672,2]
[392095259,1761156638182,-500.0,0.00023672,2]
[392095260,1761156638192,-571.06497955,0.00023672,2]
[392095261,1761156638202,-500.0,0.00023672,2]
[392095262,1761156638212,-500.0,0.00023672,2]
[392095263,1761156638221,-392.03867461,0.00023672,2]
[392095264,1761156638231,-198.95816313,0.00023672,2]
[392095265,1761156638241,-500.0,0.00023672,2]
[392095266,1761156638251,-500.0,0.00023672,2]
[392095267,1761156638260,-241.34119176,0.00023672,2]
[392095268,1761156638273,-271.88912457,0.00023672,2]
[392095269,1761156638282,-500.0,0.00023672,2]
[392095270,1761156638291,-500.0,0.00023672,2]
[392095271,1761156638301,-556.08771103,0.00023672,2]
[392095272,1761156638310,-500.0,0.00023672,2]
[392095273,1761156638322,-500.0,0.00023672,2]
[392095274,1761156638331,-500.0,0.00023672,2]
[392095275,1761156638341,-168.40073294,0.00023672,2]
[392095276,1761156638351,-500.0,0.00023672,2]
[392095277,1761156638361,-500.0,0.00023672,2]
[392095278,1761156638370,-500.0,0.00023672,2]
[392095279,1761156638379,-500.0,0.00023672,2]
[392095280,1761156638388,-500.0,0.00023673,2]
[392095281,1761156638398,-260938.70352661,0.00023675,2]
[392095282,1761156638407,-273.0,0.00023683,2]
[392095283,1761156638417,-25454.76,0.000237,7]
[392095284,1761156638426,-176.0,0.00023755,2]
[392095285,1761156638436,-1000.0,0.00023776,2]
[392095286,1761156638446,-793.50706892,0.00023776,2]
[392095287,1761156638457,-273.0,0.00023784,2]
[392095288,1761156638467,-315.0,0.00023815,2]
[392095289,1761156638478,-1857.86404622,0.0002387,2]
[392095290,1761156638489,-293.52,0.0002388,5]
[392095291,1761156638499,-177.869,0.00023889,5]
[392095292,1761156638509,-376.59,0.000239,2]
[392095293,1761156638519,-9916.82146897,0.00023925,2]
[392095294,1761156638529,-500.0,0.00023973,2]
[392095295,1761156638538,-408.09124956,0.00023973,2]
[392095296,1761156638548,-100000.0,0.0002399,2]
[392095297,1761156638558,-500.0,0.0002399,2]
[392095298,1761156638568,-151.0,0.0002399,2]
[392095299,1761156638579,-953.0,0.00024,2]
[392095300,1761156638588,-4506.47267655,0.00024,2]
[392095301,1761156638598,-168.0,0.0002402,2]
[392095302,1761156638608,-500.0,0.00024045,2]
[392095303,1761156638619,-168.43501012,0.00024045,2]
[392095304,1761156638629,-2857.0,0.00024096,2]
[392095305,1761156638638,-368.29812539,0.000241,2]
[392095306,1761156638648,-675.34123526,0.00024147,3]
[392095307,1761156638737,-1857.86404622,0.00024174,2]
[392095308,1761156638748,-1143.52635244,0.00024221,2]
[392095309,1761156638759,-1000.0,0.00024221,2]
[392095310,1761156638768,-501.89352356,0.00024221,2]
[392095311,1761156638778,-1000.0,0.00024221,2]
[392095312,1761156638787,-503.77415788,0.00024221,2]
[392095313,1761156638796,-1000.0,0.00024221,2]
[392095314,1761156638806,-1000.0,0.00024221,2]
[392095315,1761156638815,-1000.0,0.00024221,2]
[392095316,1761156638825,-1000.0,0.00024221,2]
[392095317,1761156638835,-1000.0,0.00024221,2]
[392095318,1761156638844,-1000.0,0.00024221,2]
[392095319,1761156638854,-1000.0,0.00024221,2]
[392095320,1761156638864,-2857.0,0.00024222,2]
[392095321,1761156638873,-9916.82146897,0.0002425,2]
[392095322,1761156638882,-207.0,0.00024261,2]
[392095323,1761156638891,-207.0,0.00024285,2]
[392095324,1761156638900,-1000.0,0.00024521,2]
[392095325,1761156638909,-207.0,0.00024556,2]
[392095326,1761156638919,-1857.86404622,0.00024562,2]
[392095327,1761156638928,-9916.82146897,0.00024575,2]
[392095328,1761156638938,-1504.35604818,0.00024768,2]
[392095329,1761156638947,-1500.0,0.00024768,2]
[392095330,1761156638956,-406.72294032,0.00024768,2]
[392095331,1761156638966,-1500.0,0.00024768,2]
[392095332,1761156638975,-1005.11398729,0.00024768,2]
[392095333,1761156638984,-565.25190032,0.00024768,2]
[392095334,1761156638994,-1500.0,0.00024768,2]
[392095335,1761156639003,-500.0,0.00024769,2]
[392095336,1761156639013,-151.0,0.000248,7]
[392095337,1761156639023,-913.88305,0.000248,7]
[392095338,1761156639032,-151.0,0.000248,7]
[392095339,1761156639042,-913.88305,0.000248,7]
[392095340,1761156639051,-913.88305,0.000248,7]
[392095341,1761156639061,-913.88305,0.000248,7]
[392095342,1761156639071,-151.0,0.000248,7]
[392095343,1761156639081,-151.0,0.000248,7]
[392095344,1761156639090,-500.0,0.00024805,2]
[392095345,1761156639100,-500.0,0.00024805,2]
[392095346,1761156639110,-501.80042414,0.00024805,2]
[392095347,1761156639119,-500.0,0.00024805,2]
[392095348,1761156639129,-500.0,0.00024805,2]
[392095349,1761156639138,-500.0,0.00024805,2]
[392095350,1761156639148,-500.0,0.00024805,2]
[392095351,1761156639158,-500.0,0.00024805,2]
[392095352,1761156639168,-500.0,0.00024805,2]
[392095353,1761156639177,-502.43854319,0.00024805,2]
[392095354,1761156639187,-500.0,0.00024805,2]
[392095355,1761156639196,-548.19929627,0.00024805,2]
[392095356,1761156639206,-503.58629536,0.00024805,2]
[392095357,1761156639215,-500.0,0.00024805,2]
[392095358,1761156639224,-500.0,0.00024805,2]
[392095359,1761156639234,-151.0,0.0002485,7]
[392095360,1761156639243,-5000.0,0.0002485,2]
[392095361,1761156639253,-768.955728,0.000249,2]
[392095362,1761156639263,-151.0,0.000249,7]
[392095363,1761156639277,-151.0,0.000249,7]
[392095364,1761156639287,-314.868402,0.000249,2]
[392095365,1761156639297,-151.0,0.000249,7]
[392095366,1761156639307,-249.053096,0.000249,7]
[392095367,1761156639316,-9916.82146897,0.000249,2]
[392095368,1761156639326,-151.0,0.000249,7]
[392095369,1761156639335,-348082.573024,0.000249,2]
[392095370,1761156639347,-151.0,0.000249,7]
[392095371,1761156639357,-913.88305,0.000249,7]
[392095372,1761156639366,-183.56424,0.000249,7]
[392095373,1761156639376,-913.88305,0.000249,7]
[392095374,1761156639386,-913.88305,0.000249,7]
[392095375,1761156639396,-913.88305,0.000249,7]
[392095376,1761156639407,-151.0,0.000249,7]
[392095377,1761156639417,-151.0,0.000249,7]
[392095378,1761156639427,-151.0,0.000249,7]
[392095379,1761156639436,-151.0,0.000249,7]
[392095380,1761156639446,-151.0,0.000249,7]
[392095381,1761156639455,-285.50631,0.000249,7]
[392095382,1761156639464,-151.0,0.000249,7]
[392095383,1761156639474,-151.0,0.000249,7]
[392095384,1761156639483,-151.0,0.000249,7]
[392095385,1761156639493,-151.0,0.000249,7]
[392095386,1761156639503,-151.0,0.000249,7]
[392095387,1761156639512,-151.0,0.000249,7]
[392095388,1761156639521,-5888.0,0.00024933,2]
[392095389,1761156639531,-1857.86404622,0.00024942,2]
[392095390,1761156639541,-500.0,0.00024973,2]
[392095391,1761156639550,-160.0,0.00024986,2]
[392095392,1761156639560,-201.64870159,0.00024989,2]
[392095393,1761156639571,-4090.85,0.00024997,2]
[392095394,1761156639580,-389704.56164918,0.00025,8]
[392095395,1761156639590,-300.0,0.00025,2]
[392095396,1761156639599,-403.14601822,0.00025,7]
[392095397,1761156639608,-151.0,0.00025,7]
[392095398,1761156639618,-151.0,0.00025,7]
[392095399,1761156639628,-151.0,0.00025,7]
[392095400,1761156639639,-151.0,0.00025,7]
[392095401,1761156639649,-913.88305,0.00025,7]
[392095402,1761156639659,-913.88305,0.00025,7]
[392095403,1761156639670,-913.88305,0.00025,7]
[392095404,1761156639681,-913.88305,0.00025,7]
[392095405,1761156639690,-151.0,0.00025,7]
[392095406,1761156639701,-151.0,0.00025,7]
[392095407,1761156639711,-151.0,0.00025,7]
[392095408,1761156639720,-151.0,0.00025,7]
[392095409,1761156639730,-151.0,0.00025,7]
[392095410,1761156639739,-170.543944,0.00025,7]
[392095411,1761156639749,-207.0,0.00025031,2]
[392095412,1761156639759,-2654.64,0.00025035,3]
[392095413,1761156639769,-1591.28,0.00025035,3]
[392095414,1761156639780,-1600.52,0.00025035,3]
[392095415,1761156639790,-800.26,0.00025035,3]
[392095416,1761156639801,-400.14,0.00025035,3]
[392095417,1761156639810,-1401.22,0.00025035,3]
[392095418,1761156639820,-700.6,0.00025035,3]
[392095419,1761156639830,-500.0,0.00025043,2]
[392095420,1761156639840,-207.0,0.00025064,2]
[392095421,1761156639849,-1500.0,0.00025068,2]
[392095422,1761156639860,-1119.58,0.00025161,2]
[392095423,1761156639871,-207.0,0.00025218,2]
[392095425,1761156639882,-207.0,0.00025225,2]
[392095426,1761156639892,-1857.86404624,0.00025315,2]
[392095427,1761156639902,-2000.0,0.00025316,2]
[392095428,1761156639911,-2000.0,0.00025316,2]
[392095429,1761156639921,-2000.0,0.00025316,2]
[392095430,1761156639931,-500.0,0.00025317,2]
[392095431,1761156639941,-1000.0,0.00025353,2]
[392095432,1761156639950,-1000.0,0.00025353,2]
[392095433,1761156639960,-597.77637791,0.00025353,2]
[392095434,1761156639970,-500.0,0.00025353,2]
[392095435,1761156639979,-1000.0,0.00025353,2]
[392095437,1761156639989,-1000.0,0.00025353,2]
[392095438,1761156639999,-1000.0,0.00025353,2]
[392095439,1761156640009,-502.46996771,0.00025353,2]
[392095440,1761156640019,-1000.0,0.00025353,2]
[392095441,1761156640029,-502.14047218,0.00025353,2]
[392095442,1761156640038,-207.0,0.00025377,2]
[392095443,1761156640047,-207.0,0.00025424,2]
[392095444,1761156640056,-511.8727868,0.00025509,2]
[392095445,1761156640069,-918.19602831,0.00025521,2]
[392095446,1761156640078,-260.0,0.00025534,2]
[392095447,1761156640087,-500.0,0.00025591,2]
[392095449,1761156640096,-1680.0,0.00025602,2]
[392095451,1761156640105,-529.62312454,0.00025616,2]
[392095452,1761156640115,-207.0,0.00025634,2]
[392095453,1761156640124,-303.0,0.00025671,2]
[392095454,1761156640133,-420.0,0.00025671,2]
[392095455,1761156640143,-3358.92651662,0.000257,2]
[392095456,1761156640152,-1680.0,0.00025789,2]
[392095457,1761156640162,-207.0,0.00025824,2]
[392095458,1761156640172,-2500.0,0.00025864,2]
[392095459,1761156640182,-2500.0,0.00025864,2]
[392095460,1761156640191,-525.74586575,0.00025864,2]
[392095461,1761156640201,-271.48711904,0.00025865,2]
[392095462,1761156640211,-274.0,0.00025866,2]
[392095463,1761156640223,-25454.76,0.000259,7]
[392095464,1761156640232,-151.0,0.000259,7]
[392095465,1761156640242,-151.0,0.000259,7]
[392095466,1761156640252,-913.88305,0.000259,7]
[392095467,1761156640261,-913.88305,0.000259,7]
[392095468,1761156640275,-913.88305,0.000259,7]
[392095469,1761156640285,-913.88305,0.000259,7]
[392095470,1761156640295,-151.0,0.000259,7]
[392095471,1761156640304,-228.384325,0.000259,7]
[392095472,1761156640315,-209.37164,0.000259,7]
[392095473,1761156640324,-151.0,0.000259,7]
[392095474,1761156640334,-501.21083915,0.00025901,2]
[392095475,1761156640343,-1500.0,0.00025901,2]
[392095476,1761156640353,-1500.0,0.00025901,2]
[392095477,1761156640362,-1500.0,0.00025901,2]
[392095478,1761156640372,-1005.57870524,0.00025901,2]
[392095479,1761156640381,-1500.0,0.00025901,2]
[392095480,1761156640390,-983.0,0.00025971,2]
[392095481,1761156640399,-632.0,0.00025971,2]
[392095482,1761156640408,-2164.0,0.00025971,2]
[392095486,1761156640490,-4206.0,0.00025988,2]
[392095488,1761156640501,-411.0,0.00025988,2]
[392095489,1761156640510,-360.0,0.00026082,2]
[392095490,1761156640520,-768.955728,0.0002613,2]
[392095491,1761156640529,-314.868402,0.0002613,2]
[392095492,1761156640539,-207.0,0.00026242,2]
[392095493,1761156640549,-2085.41,0.00026277,2]
[392095494,1761156640559,-3000.0,0.00026412,2]
[392095495,1761156640569,-1000.0,0.00026412,2]
[392095496,1761156640578,-510.1697177,0.00026414,4]
[392095497,1761156640588,-207.0,0.00026426,2]
[392095498,1761156640597,-2026.45251339,0.00026449,2]
[392095499,1761156640606,-2000.0,0.00026449,2]
[392095500,1761156640616,-1957.30267343,0.00026449,2]
[392095501,1761156640626,-2000.0,0.00026449,2]
[392095502,1761156640636,-460.0,0.0002663,2]
[392095503,1761156640645,-631.924311,0.00026676,2]
[392095504,1761156640655,-265.27842763,0.00026795,22]
[392095505,1761156640665,-720.0,0.00026935,30]
[392095506,1761156640674,-151.0,0.00026935,7]
[392095507,1761156640684,-151.0,0.00026935,7]
[392095508,1761156640694,-1387.71567513,0.0002696,2]
[392095509,1761156640703,-2500.0,0.00026997,2]
[392095510,1761156640713,-2500.0,0.00026997,2]
[392095511,1761156640722,-250.0,0.00027,7]
[392095512,1761156640732,-2001.86519524,0.00027,3]
[392095513,1761156640741,-1492.77,0.00027097,2]
[392095514,1761156640750,-560.0,0.00027178,2]
[392095515,1761156640760,-768.955728,0.00027361,2]
[392095516,1761156640769,-314.868402,0.00027361,2]
[392095517,1761156640779,-2122.38,0.000274,7]
[392095518,1761156640789,-3636.83,0.000274,2]
[392095519,1761156640799,-589.95507631,0.00027509,2]
[392095520,1761156640809,-935.86530428,0.00027545,5]
[392095521,1761156640819,-3000.0,0.00027545,5]
[392095522,1761156640829,-231.7,0.00027671,7]
[392095523,1761156640839,-660.0,0.00027726,2]
[392095524,1761156640850,-587.0,0.00027848,2]
[392095525,1761156640860,-231.7,0.00027945,8]
[392095526,1761156640870,-218.91667002,0.00027945,5]
[392095527,1761156640879,-285.262,0.00028054,2]
[392095528,1761156640889,-212.147,0.00028054,2]
[392095529,1761156640898,-1500.0,0.00028093,5]
[392095530,1761156640908,-2351.0,0.00028105,2]
[392095531,1761156640919,-25454.76,0.000282,7]
[392095532,1761156640929,-151.0,0.000282,30]
[392095533,1761156640938,-913.88305,0.000282,30]
[392095534,1761156640947,-913.88305,0.000282,30]
[392095535,1761156640957,-913.88305,0.000282,30]
[392095536,1761156640967,-913.8830484,0.000282,30]
[392095537,1761156640976,-151.0,0.000282,30]
[392095538,1761156640985,-151.0,0.000282,30]
[392095539,1761156640995,-231.7,0.00028219,9]
[392095540,1761156641005,-760.0,0.00028274,2]
[392095541,1761156641015,-273.52684041,0.00028318,18]
[392095542,1761156641024,-273.52684041,0.00028318,18]
[392095543,1761156641034,-151.0,0.000284,7]
[392095544,1761156641043,-231.7,0.00028493,10]
[392095545,1761156641053,-21790.82787461,0.000285,7]
[392095546,1761156641063,-768.955728,0.00028591,2]
[392095547,1761156641077,-314.868402,0.00028591,2]
[392095548,1761156641086,-273.52684041,0.00028655,35]
[392095549,1761156641096,-3636.83,0.000287,2]
[392095550,1761156641106,-438.22,0.00028767,2]
[392095551,1761156641115,-438.22,0.00028767,2]
[392095552,1761156641124,-438.22,0.00028767,2]
[392095553,1761156641134,-438.22,0.00028767,2]
[392095554,1761156641143,-438.22,0.00028767,2]
[392095555,1761156641153,-438.22,0.00028767,2]
[392095556,1761156641163,-438.22,0.00028767,2]
[392095557,1761156641172,-438.22,0.00028767,2]
[392095558,1761156641182,-438.22,0.00028767,2]
[392095559,1761156641191,-438.22,0.00028767,2]
[392095560,1761156641200,-438.22,0.00028767,2]
[392095561,1761156641210,-438.22,0.00028767,2]
[392095562,1761156641219,-438.22,0.00028767,2]
[392095563,1761156641228,-438.22,0.00028767,2]
[392095564,1761156641238,-438.22,0.00028767,2]
[392095565,1761156641247,-438.22,0.00028767,2]
[392095566,1761156641256,-438.22,0.00028767,2]
[392095567,1761156641272,-438.22,0.00028767,2]
[392095568,1761156641287,-438.22,0.00028767,2]
[392095569,1761156641302,-438.22,0.00028767,2]
[392095570,1761156641314,-438.22,0.00028767,2]
[392095571,1761156641329,-438.22,0.00028767,2]
[392095572,1761156641343,-438.22,0.00028767,2]
[392095573,1761156641357,-438.34309408,0.00028767,2]
[392095574,1761156641371,-231.7,0.00028767,11]
[392095575,1761156641383,-2122.38,0.000288,7]
[392095576,1761156641397,-860.0,0.00028822,2]
[392095577,1761156641410,-983.0,0.00028971,2]
[392095578,1761156641423,-632.0,0.00028971,2]
[392095579,1761156641436,-2164.0,0.00028971,2]
[392095580,1761156641450,-156.0,0.00028986,32]
[392095581,1761156641462,-411.0,0.00028988,2]
[392095582,1761156641477,-273.52684041,0.00028992,52]
[392095583,1761156641490,-273.52684041,0.00028992,52]
[392095584,1761156641502,-1242.85,0.00029,30]
[392095585,1761156641514,-1865.96,0.00029032,2]
[392095586,1761156641526,-231.7,0.00029041,12]
[392095587,1761156641538,-159.94,0.00029075,30]
[392095588,1761156641552,-5000.0,0.00029184,2]
[392095589,1761156641564,-403.14601822,0.0002922,2]
[392095590,1761156641577,-417.15472785,0.0002922,2]
[392095591,1761156641590,-1287.66043906,0.00029256,2]
[392095592,1761156641604,-231.7,0.00029315,13]
[392095593,1761156641618,-273.52684041,0.00029328,69]
[392095594,1761156641630,-273.52684041,0.00029328,69]
[392095595,1761156641641,-200.0,0.00029333,5]
[392095596,1761156641651,-960.0,0.0002937,2]
[392095597,1761156641664,-250.0,0.00029431,2]
[392095598,1761156641679,-157.75919698,0.00029494,2]
[392095599,1761156641694,-668.03736582,0.00029509,2]
[392095600,1761156641704,-11882.71967382,0.0002956,2]
[392095601,1761156641716,-530.93053923,0.00029573,5]
[392095602,1761156641728,-500.0,0.00029573,5]
[392095603,1761156641742,-500.0,0.00029573,5]
[392095604,1761156641753,-231.7,0.00029589,14]
[392095605,1761156641765,-864.0,0.00029628,30]
[392095606,1761156641777,-10000.0,0.000298,3]
[392095607,1761156641788,-768.955728,0.00029822,2]
[392095608,1761156641800,-314.868402,0.00029822,2]
[392095609,1761156641813,-153.674595,0.00029822,2]
[392095610,1761156641825,-231.7,0.00029863,15]
[392095611,1761156641836,-400.0,0.00029881,5]
[392095612,1761156641848,-1060.0,0.00029918,2]
[392095613,1761156641860,-400.0,0.0003,2]
[392095614,1761156641871,-250.0,0.0003,7]
[392095615,1761156641883,-265.78099495,0.0003,30]
[392095616,1761156641895,-210.50925,0.0003,2]
[392095617,1761156641908,-10000.0,0.0003,2]
[392095618,1761156641919,-502.51300571,0.00030032,11]
[392095619,1761156641932,-500.0,0.00030032,11]
[392095620,1761156641943,-8000.0,0.00030088,3]
[392095621,1761156641955,-151.0,0.00030088,7]
[392095622,1761156641966,-3636.83,0.000301,2]
[392095623,1761156641977,-1000.0,0.00030121,5]
[392095624,1761156641989,-231.7,0.00030136,16]
[392095625,1761156642002,-823.0,0.00030211,2]
[392095626,1761156642014,-25454.76,0.000303,7]
[392095627,1761156642026,-2122.38,0.000303,7]
[392095628,1761156642038,-231.7,0.0003041,17]
[392095629,1761156642050,-600.0,0.00030429,5]
[392095630,1761156642062,-1160.0,0.00030465,2]
[392095631,1761156642075,-1323.0,0.000305,2]
[392095632,1761156642086,-500.9,0.00030511,2]
[392095633,1761156642100,-3292.0,0.00030629,2]
[392095634,1761156642111,-1500.0,0.00030668,5]
[392095635,1761156642123,-231.7,0.00030684,18]
[392095636,1761156642134,-231.7,0.00030958,19]
[392095637,1761156642146,-2239.15,0.00030968,2]
[392095638,1761156642158,-800.0,0.00030977,5]
[392095639,1761156642170,-18418.68688991,0.00031,2]
[392095640,1761156642182,-1001.92,0.00031,2]
[392095641,1761156642195,-1260.0,0.00031013,2]
[392095642,1761156642207,-1001.92,0.00031174,2]
[392095643,1761156642216,-169.0,0.00031178,44]
[392095644,1761156642226,-2000.0,0.00031216,5]
[392095645,1761156642345,-231.7,0.00031232,20]
[392095646,1761156642360,-231.7,0.00031506,21]
[392095647,1761156642371,-746.11965533,0.00031509,2]
[392095648,1761156642381,-224.38633584,0.00031525,5]
[392095649,1761156642390,-1360.0,0.00031561,2]
[392095650,1761156642400,-3636.83,0.000316,2]
[392095651,1761156642409,-319.88,0.00031718,30]
[392095652,1761156642418,-231.7,0.0003178,22]
[392095653,1761156642427,-403.14601822,0.00031926,30]
[392095654,1761156642436,-983.0,0.00031971,2]
[392095655,1761156642445,-632.0,0.00031971,2]
[392095656,1761156642456,-2164.0,0.00031971,2]
[392095657,1761156642465,-411.0,0.00031988,2]
[392095658,1761156642476,-231.7,0.00032054,23]
[392095659,1761156642485,-2122.38,0.000321,7]
[392095660,1761156642495,-1460.0,0.00032109,2]
[392095661,1761156642504,-231.7,0.00032328,24]
[392095662,1761156642513,-6906.0,0.00032485,2]
[392095663,1761156642523,-1000.0,0.00032591,30]
[392095664,1761156642533,-231.7,0.00032602,25]
[392095665,1761156642543,-1560.0,0.00032657,2]
[392095666,1761156642553,-151.25,0.00032724,15]
[392095667,1761156642562,-152.05,0.00032727,15]
[392095668,1761156642573,-153.09,0.00032748,15]
[392095669,1761156642582,-1152.0,0.00032773,2]
[392095670,1761156642592,-210.50925,0.00032808,2]
[392095671,1761156642602,-151.25,0.00032824,15]
[392095672,1761156642611,-152.05,0.00032827,15]
[392095673,1761156642621,-153.09,0.00032848,15]
[392095674,1761156642631,-231.7,0.00032876,26]
[392095675,1761156642640,-3791.35,0.00032876,120]
[392095676,1761156642649,-2612.34,0.00032903,2]
[392095677,1761156642659,-151.25,0.00032924,60]
[392095678,1761156642668,-152.05,0.00032927,60]
[392095679,1761156642678,-153.09,0.00032948,60]
[392095680,1761156642688,-25454.76,0.00033,14]
[392095681,1761156642697,-151.25,0.00033024,60]
[392095682,1761156642707,-152.05,0.00033027,60]
[392095683,1761156642718,-153.09,0.00033048,60]
[392095684,1761156642727,-151.25,0.00033124,60]
[392095685,1761156642736,-152.05,0.00033127,60]
[392095686,1761156642746,-10000.0,0.00033147,7]
[392095687,1761156642755,-153.09,0.00033148,60]
[392095688,1761156642765,-231.7,0.0003315,27]
[392095689,1761156642775,-631.924311,0.00033165,2]
[392095690,1761156642784,-3636.83,0.000332,14]
[392095691,1761156642793,-1660.0,0.00033205,2]
[392095692,1761156642803,-151.25,0.00033224,60]
[392095693,1761156642812,-152.05,0.00033227,60]
[392095694,1761156642822,-153.09,0.00033248,60]
[392095695,1761156642832,-1000.0,0.00033249,15]
[392095696,1761156642842,-500.0,0.00033273,5]
[392095697,1761156642851,-151.25,0.00033324,60]
[392095699,1761156642861,-152.05,0.00033327,60]
[392095701,1761156642870,-153.09,0.00033348,60]
[392095702,1761156642879,-4609.0,0.0003338,3]
[392095703,1761156642889,-151.25,0.00033424,60]
[392095704,1761156642898,-231.7,0.00033424,28]
[392095705,1761156642908,-152.05,0.00033427,60]
[392095706,1761156642918,-153.09,0.00033448,60]
[392095707,1761156642930,-824.20194484,0.00033509,120]
[392095708,1761156642942,-5000.0,0.00033517,3]
[392095709,1761156642951,-151.25,0.00033524,60]
[392095710,1761156642961,-152.05,0.00033527,60]
[392095711,1761156642970,-153.09,0.00033548,60]
[392095712,1761156642979,-151.25,0.00033624,60]
[392095713,1761156642988,-152.05,0.00033627,60]
[392095714,1761156642998,-153.09,0.00033648,60]
[392095716,1761156643008,-231.7,0.00033698,29]
[392095718,1761156643017,-2122.38,0.000337,7]
[392095720,1761156643026,-151.25,0.00033724,60]
[392095721,1761156643035,-152.05,0.00033727,60]
[392095722,1761156643045,-153.09,0.00033748,60]
[392095723,1761156643054,-1760.0,0.00033753,2]
[392095724,1761156643063,-151.25,0.00033824,60]
[392095725,1761156643073,-152.05,0.00033827,60]
[392095726,1761156643082,-153.09,0.00033848,60]
[392095727,1761156643091,-151.25,0.00033924,60]